fUST/lending_fUST_20250301
["ID","MTS","AMOUNT","RATE_DAILY","PERIOD"]
[354934871,1740832039194,-400.0,0.00031499,2]
[354934872,1740832039216,-2276.3566692,0.000315,120]
[354934873,1740832049108,-5477.08571653,0.000315,120]
[354934876,1740832149102,-192.70847433,0.000294,2]
[354934916,1740832235871,-389.505386,0.00030422,2]
[354934917,1740832235881,-810.53643992,0.000308,2]
[354934918,1740832235891,-500.0,0.00030886,2]
[354934919,1740832235900,-153.68059,0.00031304,15]
[354934920,1740832235909,-500.0,0.00031499,2]
[354934921,1740832235919,-2855.28,0.00031499,2]
[354934922,1740832235928,-1314.65,0.00031499,5]
[354934923,1740832235938,-1251.9,0.00031499,2]
[354934924,1740832235948,-1033.11,0.00031499,2]
[354934925,1740832235958,-1112.57,0.00031499,2]
[354934926,1740832235970,-500.0,0.00031499,2]
[354934927,1740832235979,-500.0,0.00031499,2]
[354934928,1740832235989,-575.05244896,0.00031499,2]
[354934929,1740832235998,-500.0,0.00031499,2]
[354934930,1740832236007,-405.92986803,0.00031499,2]
[354934931,1740832236016,-6849.46147938,0.000315,120]
[354934939,1740832238656,-500.0,0.00031499,2]
[354934940,1740832238667,-500.0,0.00031499,2]
[354934941,1740832238677,-85823.8841028,0.000315,120]
[354934942,1740832238689,-2054.48557689,0.000316,2]
[354934943,1740832238699,-992.13808352,0.000317,2]
[354934944,1740832238722,-500.0,0.00031499,2]
[354934945,1740832238732,-1007.82340362,0.000317,2]
[354934946,1740832238742,-2855.28,0.00031773,2]
[354934947,1740832238751,-1314.65,0.00031773,5]
[354934948,1740832238761,-1251.9,0.00031773,2]
[354934949,1740832238771,-1033.11,0.00031773,2]
[354934950,1740832238782,-1112.57,0.00031773,2]
[354934951,1740832238791,-500.0,0.00031773,2]
[354934952,1740832238801,-500.0,0.00031773,2]
[354934953,1740832238812,-500.0,0.00031773,2]
[354934954,1740832238822,-500.0,0.00031773,2]
[354934955,1740832238833,-20284.0,0.000318,2]
[354934956,1740832238843,-7209.0,0.000318,30]
[354934957,1740832238853,-2000.0,0.000318,30]
[354934958,1740832238863,-2000.0,0.000318,40]
[354934959,1740832238873,-2000.0,0.000318,50]
[354934960,1740832238883,-2000.0,0.000318,60]
[354934961,1740832238893,-2000.0,0.000318,80]
[354934962,1740832238903,-2000.0,0.000318,90]
[354934963,1740832238912,-16000.0,0.00031819,2]
[354934964,1740832238922,-153.68059,0.0003185,15]
[354934965,1740832238931,-203.82315853,0.00031868,2]
[354934966,1740832238941,-179.10231599,0.00031868,2]
[354934967,1740832238952,-4115.91687127,0.00031872,7]
[354934968,1740832238961,-500.0,0.00031873,5]
[354934969,1740832238971,-539.61822712,0.00031873,5]
[354934970,1740832238980,-500.0,0.00031873,5]
[354934971,1740832238993,-500.0,0.00031873,5]
[354934972,1740832239004,-500.0,0.00031873,3]
[354934973,1740832239013,-218.7125375,0.00031873,5]
[354934974,1740832239023,-500.0,0.00031873,5]
[354934975,1740832239032,-500.0,0.00031873,5]
[354934976,1740832239041,-500.0,0.00031873,3]
[354934977,1740832239056,-500.0,0.00031873,5]
[354934978,1740832239066,-500.0,0.00031873,5]
[354934979,1740832239076,-500.0,0.00031873,5]
[354934980,1740832239091,-505.25202519,0.00031873,5]
[354934981,1740832239101,-1618.62,0.00031884,2]
[354934982,1740832239110,-10030.69,0.00031884,2]
[354934983,1740832239120,-1743.55,0.00031884,2]
[354934984,1740832239130,-577.29,0.00031884,2]
[354934985,1740832239139,-500.0,0.00031884,2]
[354934986,1740832239149,-514.77,0.00031884,2]
[354934987,1740832239159,-2699.39,0.00031884,2]
[354934988,1740832239168,-3456.77,0.00031884,2]
[354934989,1740832239178,-500.0,0.00031884,2]
[354934990,1740832239188,-500.0,0.00031884,2]
[354934991,1740832239198,-500.0,0.00031884,2]
[354934992,1740832239210,-2484.71,0.00031884,2]
[354934993,1740832239220,-1203.18,0.00031884,2]
[354934994,1740832239230,-1515.71,0.00031884,2]
[354934995,1740832239240,-1596.52,0.00031884,2]
[354934996,1740832239249,-500.0,0.00031884,2]
[354934997,1740832239259,-500.0,0.00031884,2]
[354934998,1740832239269,-500.0,0.00031884,2]
[354934999,1740832239279,-16615.78,0.00031884,2]
[354935000,1740832239288,-1263.05,0.00031884,2]
[354935001,1740832239298,-500.0,0.00031884,2]
[354935002,1740832239308,-9883.84,0.00031884,2]
[354935003,1740832239318,-1530.19,0.00031884,2]
[354935004,1740832239328,-5157.99,0.00031884,2]
[354935005,1740832239337,-500.0,0.00031884,2]
[354935006,1740832239347,-7560.84,0.00031884,2]
[354935007,1740832239357,-500.0,0.00031884,2]
[354935008,1740832239367,-2063.46,0.00031884,2]
[354935009,1740832239376,-500.0,0.00031884,2]
[354935010,1740832239386,-500.0,0.00031884,2]
[354935011,1740832239395,-1191.95,0.00031884,2]
[354935012,1740832239405,-3706.62,0.00031884,2]
[354935013,1740832239415,-2075.76,0.00031884,2]
[354935014,1740832239424,-500.0,0.00031884,2]
[354935015,1740832239434,-500.0,0.00031884,2]
[354935016,1740832239443,-30395.78,0.00031884,2]
[354935017,1740832239453,-500.0,0.00031884,2]
[354935018,1740832239463,-1432.99,0.00031884,2]
[354935019,1740832239472,-3009.6,0.00031884,2]
[354935020,1740832239483,-500.0,0.00031884,2]
[354935021,1740832239492,-1394.42,0.00031884,2]
[354935022,1740832239502,-500.0,0.00031884,2]
[354935023,1740832239512,-2064.11,0.00031884,2]
[354935024,1740832239521,-500.0,0.00031884,2]
[354935025,1740832239530,-6356.27,0.00031884,2]
[354935026,1740832239540,-500.0,0.00031885,2]
[354935027,1740832239549,-500.0,0.00031885,2]
[354935028,1740832239559,-500.0,0.00031885,2]
[354935029,1740832239570,-500.0,0.00031885,2]
[354935030,1740832239580,-500.0,0.00031885,2]
[354935031,1740832239590,-500.0,0.00031885,2]
[354935032,1740832239605,-500.0,0.00031885,2]
[354935033,1740832239616,-719.54,0.00031885,2]
[354935034,1740832239625,-500.0,0.00031885,2]
[354935035,1740832239636,-500.0,0.00031885,2]
[354935036,1740832239646,-500.0,0.00031885,2]
[354935037,1740832239657,-500.0,0.00031885,2]
[354935038,1740832239668,-500.0,0.00031885,2]
[354935039,1740832239678,-1492.6,0.00031885,2]
[354935040,1740832239689,-500.0,0.00031885,2]
[354935041,1740832239699,-500.0,0.00031885,2]
[354935042,1740832239709,-500.0,0.00031885,2]
[354935043,1740832239719,-500.0,0.00031885,2]
[354935044,1740832239729,-504.83650581,0.00031885,2]
[354935045,1740832239739,-1784.88,0.00031885,2]
[354935046,1740832239749,-500.0,0.00031885,2]
[354935047,1740832239759,-998.66,0.00031885,2]
[354935048,1740832239769,-500.0,0.00031885,2]
[354935049,1740832239779,-597.31,0.00031885,2]
[354935050,1740832239789,-500.0,0.00031885,2]
[354935051,1740832239799,-500.0,0.00031885,2]
[354935052,1740832239809,-500.0,0.00031885,2]
[354935053,1740832239819,-500.0,0.00031885,2]
[354935054,1740832239829,-500.0,0.00031885,2]
[354935055,1740832239838,-500.0,0.00031885,2]
[354935056,1740832239849,-1002.3,0.00031885,2]
[354935057,1740832239859,-501.91751933,0.00031885,2]
[354935058,1740832239869,-500.0,0.00031885,2]
[354935059,1740832239878,-1676.69,0.00031885,2]
[354935060,1740832239888,-500.0,0.00031885,2]
[354935061,1740832239899,-621.46,0.00031885,2]
[354935062,1740832239909,-505.34708335,0.00031885,2]
[354935063,1740832239919,-500.0,0.00031885,2]
[354935064,1740832239928,-561.09,0.00031885,2]
[354935065,1740832239938,-520.11961642,0.00031885,2]
[354935066,1740832239948,-1216.02,0.00031885,2]
[354935067,1740832239958,-10977.25,0.00031885,2]
[354935068,1740832239968,-1135.6,0.00031885,2]
[354935069,1740832239978,-500.0,0.00031885,2]
[354935070,1740832239988,-1844.41,0.00031885,2]
[354935071,1740832239998,-1273.73,0.00031885,2]
[354935072,1740832240008,-500.0,0.00031885,2]
[354935073,1740832240018,-500.0,0.00031885,2]
[354935074,1740832240028,-512.59,0.00031885,2]
[354935075,1740832240037,-500.0,0.00031885,2]
[354935076,1740832240047,-500.0,0.00031885,2]
[354935077,1740832240057,-500.0,0.00031885,2]
[354935078,1740832240067,-574.6,0.00031885,2]
[354935079,1740832240077,-854.9,0.00031885,2]
[354935080,1740832240087,-502.83082151,0.00031885,2]
[354935081,1740832240097,-544.93,0.00031885,2]
[354935082,1740832240106,-1950.19,0.00031885,2]
[354935083,1740832240116,-500.0,0.00031885,2]
[354935084,1740832240125,-940.98,0.00031885,2]
[354935085,1740832240135,-500.0,0.00031885,2]
[354935086,1740832240144,-500.0,0.00031885,2]
[354935087,1740832240154,-638.8,0.00031885,2]
[354935088,1740832240164,-500.0,0.00031885,2]
[354935089,1740832240174,-981.86,0.00031885,2]
[354935090,1740832240184,-500.0,0.00031885,2]
[354935091,1740832240194,-325.02174419,0.00031885,2]
[354935092,1740832240204,-500.0,0.00031885,2]
[354935093,1740832240214,-1024.7,0.00031885,2]
[354935094,1740832240224,-500.0,0.00031885,2]
[354935095,1740832240234,-593.55,0.00031885,2]
[354935096,1740832240243,-1661.19,0.00031885,2]
[354935097,1740832240254,-505.71,0.00031885,2]
[354935098,1740832240264,-500.0,0.00031885,2]
[354935100,1740832240273,-892.92,0.00031885,2]
[354935102,1740832240283,-785.59,0.00031885,2]
[354935103,1740832240292,-346.17023805,0.00031885,2]
[354935104,1740832240302,-500.0,0.00031885,2]
[354935105,1740832240312,-500.0,0.00031885,2]
[354935106,1740832240321,-500.0,0.00031885,2]
[354935107,1740832240331,-500.0,0.00031885,2]
[354935108,1740832240340,-500.0,0.00031885,2]
[354935109,1740832240349,-500.0,0.00031885,2]
[354935110,1740832240359,-500.0,0.00031885,2]
[354935111,1740832240370,-964.12,0.00031885,2]
[354935112,1740832240379,-500.0,0.00031885,2]
[354935113,1740832240389,-500.0,0.00031885,2]
[354935114,1740832240398,-500.0,0.00031885,2]
[354935115,1740832240408,-500.0,0.00031885,2]
[354935116,1740832240417,-500.0,0.00031885,2]
[354935117,1740832240427,-500.0,0.00031886,2]
[354935118,1740832240437,-500.0,0.00031886,2]
[354935119,1740832240447,-447.1481797,0.00031886,2]
[354935120,1740832240458,-500.0,0.00031886,2]
[354935121,1740832240467,-500.0,0.00031886,2]
[354935122,1740832240476,-500.0,0.00031886,2]
[354935123,1740832240486,-500.0,0.00031886,2]
[354935124,1740832240495,-500.0,0.00031886,2]
[354935125,1740832240504,-500.0,0.00031886,2]
[354935126,1740832240514,-989.26,0.00031886,2]
[354935127,1740832240524,-500.0,0.00031886,2]
[354935128,1740832240534,-500.0,0.00031886,2]
[354935129,1740832240543,-520.03020786,0.00031886,2]
[354935131,1740832240553,-500.0,0.00031886,2]
[354935132,1740832240563,-500.0,0.00031886,2]
[354935133,1740832240572,-500.0,0.00031886,2]
[354935134,1740832240582,-500.0,0.00031886,2]
[354935135,1740832240591,-508.68432404,0.00031886,2]
[354935137,1740832240613,-500.0,0.00031886,2]
[354935138,1740832240624,-500.0,0.00031886,2]
[354935139,1740832240634,-500.0,0.00031886,2]
[354935140,1740832240644,-419.6617349,0.00031886,2]
[354935141,1740832240655,-523.83,0.00031886,2]
[354935143,1740832240665,-500.0,0.00031886,2]
[354935144,1740832240675,-500.0,0.00031886,2]
[354935145,1740832240686,-509.37184616,0.00031886,2]
[354935146,1740832240697,-500.0,0.00031886,2]
[354935147,1740832240707,-500.0,0.00031886,2]
[354935148,1740832240718,-500.0,0.00031886,2]
[354935149,1740832240728,-500.0,0.00031886,2]
[354935150,1740832240739,-500.0,0.00031886,2]
[354935151,1740832240749,-500.0,0.00031886,2]
[354935152,1740832240759,-500.0,0.00031886,2]
[354935153,1740832240769,-500.0,0.00031886,2]
[354935154,1740832240779,-500.0,0.00031886,2]
[354935155,1740832240789,-251.63711037,0.00031886,2]
[354935156,1740832240799,-500.0,0.00031886,2]
[354935157,1740832240809,-502.19316259,0.00031886,2]
[354935158,1740832240819,-500.0,0.00031886,2]
[354935159,1740832240829,-500.0,0.00031886,2]
[354935160,1740832240839,-500.0,0.00031886,2]
[354935161,1740832240848,-500.0,0.00031886,2]
[354935162,1740832240858,-500.0,0.00031886,2]
[354935163,1740832240868,-500.0,0.00031886,2]
[354935164,1740832240878,-541.86674352,0.00031886,2]
[354935165,1740832240889,-500.0,0.00031886,2]
[354935166,1740832240899,-500.0,0.00031886,2]
[354935167,1740832240908,-500.0,0.00031886,2]
[354935168,1740832240918,-500.0,0.00031886,2]
[354935169,1740832240928,-778.4,0.00031886,2]
[354935170,1740832240938,-504.88748835,0.00031886,2]
[354935171,1740832240947,-500.0,0.00031886,2]
[354935172,1740832240958,-500.0,0.00031886,2]
[354935173,1740832240968,-500.0,0.00031886,2]
[354935175,1740832240978,-500.0,0.00031886,2]
[354935177,1740832240988,-500.0,0.00031886,2]
[354935178,1740832240998,-500.0,0.00031886,2]
[354935179,1740832241007,-500.0,0.00031886,2]
[354935180,1740832241017,-551.80569978,0.00031886,2]
[354935181,1740832241027,-500.0,0.00031886,2]
[354935182,1740832241037,-500.0,0.00031886,2]
[354935183,1740832241047,-500.0,0.00031886,2]
[354935184,1740832241057,-500.0,0.00031886,2]
[354935185,1740832241067,-500.0,0.00031886,2]
[354935186,1740832241076,-500.0,0.00031886,2]
[354935187,1740832241086,-200.0,0.00031886,2]
[354935188,1740832241096,-500.0,0.00031886,2]
[354935189,1740832241106,-500.0,0.00031886,2]
[354935190,1740832241115,-500.0,0.00031886,2]
[354935191,1740832241125,-500.0,0.00031886,2]
[354935192,1740832241135,-500.0,0.00031886,2]
[354935193,1740832241144,-699.39,0.00031886,2]
[354935194,1740832241154,-617.75403216,0.00031886,2]
[354935195,1740832241163,-500.0,0.00031886,2]
[354935196,1740832241173,-500.0,0.00031886,2]
[354935197,1740832241183,-500.0,0.00031886,2]
[354935198,1740832241192,-507.40677207,0.00031886,2]
[354935199,1740832241203,-614.54,0.00031886,2]
[354935200,1740832241212,-500.0,0.00031886,2]
[354935201,1740832241222,-508.21567651,0.00031886,2]
[354935202,1740832241232,-500.0,0.00031886,2]
[354935203,1740832241241,-551.8,0.00031886,2]
[354935204,1740832241251,-457.83751218,0.00031886,2]
[354935205,1740832241260,-502.15668944,0.00031886,2]
[354935206,1740832241270,-500.0,0.00031886,2]
[354935207,1740832241280,-500.0,0.00031886,2]
[354935208,1740832241289,-511.12506657,0.00031886,2]
[354935209,1740832241298,-500.0,0.00031886,2]
[354935210,1740832241308,-500.0,0.00031886,2]
[354935211,1740832241318,-501.75204551,0.00031886,2]
[354935212,1740832241328,-661.23,0.00031886,2]
[354935213,1740832241338,-500.0,0.00031886,2]
[354935214,1740832241347,-500.0,0.00031886,2]
[354935215,1740832241357,-500.0,0.00031886,2]
[354935216,1740832241366,-500.0,0.00031886,2]
[354935217,1740832241376,-500.0,0.00031886,2]
[354935218,1740832241386,-500.0,0.00031886,2]
[354935219,1740832241396,-500.0,0.00031886,2]
[354935220,1740832241406,-500.0,0.00031886,2]
[354935221,1740832241415,-500.0,0.00031886,2]
[354935222,1740832241424,-500.0,0.00031886,2]
[354935223,1740832241434,-501.13,0.00031886,2]
[354935224,1740832241444,-500.0,0.00031886,2]
[354935225,1740832241453,-904.43,0.00031886,2]
[354935226,1740832241463,-500.0,0.00031886,2]
[354935227,1740832241473,-500.0,0.00031886,2]
[354935228,1740832241483,-645.97,0.00031886,2]
[354935229,1740832241492,-500.0,0.00031886,2]
[354935230,1740832241502,-1438.22,0.00031886,2]
[354935231,1740832241511,-500.0,0.00031886,2]
[354935232,1740832241522,-392.22335196,0.00031886,2]
[354935233,1740832241531,-500.0,0.00031886,2]
[354935234,1740832241541,-500.0,0.00031886,2]
[354935235,1740832241556,-500.0,0.00031886,2]
[354935236,1740832241566,-1065.31,0.00031886,2]
[354935237,1740832241576,-500.0,0.00031886,2]
[354935238,1740832241587,-500.0,0.00031886,2]
[354935239,1740832241597,-500.0,0.00031886,2]
[354935240,1740832241613,-306.26038059,0.00031886,2]
[354935241,1740832241625,-500.0,0.00031886,2]
[354935242,1740832241635,-500.0,0.00031886,2]
[354935243,1740832241647,-500.0,0.00031886,2]
[354935244,1740832241657,-500.0,0.00031886,2]
[354935245,1740832241668,-500.0,0.00031886,2]
[354935246,1740832241678,-500.0,0.00031886,2]
[354935247,1740832241689,-500.0,0.00031886,2]
[354935248,1740832241700,-500.0,0.00031886,2]
[354935249,1740832241711,-500.0,0.00031886,2]
[354935250,1740832241721,-502.87,0.00031886,2]
[354935251,1740832241733,-500.0,0.00031886,2]
[354935252,1740832241743,-500.0,0.00031886,2]
[354935253,1740832241754,-500.0,0.00031886,2]
[354935254,1740832241764,-500.0,0.00031886,2]
[354935255,1740832241775,-500.0,0.00031886,2]
[354935256,1740832241785,-500.0,0.00031886,2]
[354935257,1740832241796,-500.0,0.00031886,2]
[354935258,1740832241807,-500.0,0.00031886,2]
[354935259,1740832241817,-500.0,0.00031886,2]
[354935260,1740832241828,-500.0,0.00031886,2]
[354935261,1740832241838,-500.0,0.00031886,2]
[354935262,1740832241848,-500.0,0.00031886,2]
[354935263,1740832241859,-234.83147696,0.00031886,2]
[354935264,1740832241868,-500.0,0.00031886,2]
[354935265,1740832241879,-500.0,0.00031886,2]
[354935266,1740832241889,-500.0,0.00031886,2]
[354935267,1740832241900,-500.0,0.00031886,2]
[354935268,1740832241911,-500.0,0.00031886,2]
[354935269,1740832241922,-500.0,0.00031886,2]
[354935270,1740832241933,-500.0,0.00031886,2]
[354935271,1740832241943,-500.0,0.00031886,2]
[354935272,1740832241954,-500.0,0.00031886,2]
[354935273,1740832241964,-500.0,0.00031886,2]
[354935274,1740832241975,-359.70484199,0.00031886,2]
[354935275,1740832241986,-500.0,0.00031886,2]
[354935276,1740832241996,-505.59154182,0.00031886,2]
[354935277,1740832242006,-500.0,0.00031886,2]
[354935278,1740832242017,-500.0,0.00031886,2]
[354935279,1740832242027,-500.0,0.00031886,2]
[354935280,1740832242037,-945.79,0.00031886,2]
[354935281,1740832242047,-500.0,0.00031886,2]
[354935282,1740832242057,-500.0,0.00031886,2]
[354935283,1740832242067,-500.0,0.00031886,2]
[354935284,1740832242077,-872.93,0.00031886,2]
[354935285,1740832242088,-500.0,0.00031886,2]
[354935286,1740832242098,-500.0,0.00031886,2]
[354935287,1740832242108,-500.0,0.00031886,2]
[354935288,1740832242119,-500.0,0.00031886,2]
[354935289,1740832242129,-500.0,0.00031886,2]
[354935290,1740832242139,-500.0,0.00031886,2]
[354935291,1740832242149,-500.0,0.00031886,2]
[354935292,1740832242159,-500.0,0.00031886,2]
[354935293,1740832242169,-500.0,0.00031886,2]
[354935294,1740832242179,-500.0,0.00031886,2]
[354935295,1740832242190,-500.0,0.00031886,2]
[354935296,1740832242200,-500.0,0.00031886,2]
[354935297,1740832242211,-500.0,0.00031886,2]
[354935298,1740832242221,-500.0,0.00031886,2]
[354935299,1740832242231,-196.2690269,0.00031886,2]
[354935300,1740832242241,-500.0,0.00031886,2]
[354935301,1740832242251,-257.09457532,0.00031886,2]
[354935302,1740832242262,-503.43214631,0.00031886,2]
[354935303,1740832242271,-345.7340843,0.00031886,2]
[354935304,1740832242281,-565.55,0.00031886,2]
[354935305,1740832242292,-500.0,0.00031886,2]
[354935306,1740832242302,-500.0,0.00031886,2]
[354935307,1740832242312,-500.0,0.00031886,2]
[354935308,1740832242323,-500.0,0.00031886,2]
[354935309,1740832242334,-500.0,0.00031886,2]
[354935310,1740832242344,-500.0,0.00031886,2]
[354935311,1740832242354,-500.0,0.00031886,2]
[354935312,1740832242365,-500.0,0.00031886,2]
[354935313,1740832242377,-500.0,0.00031886,2]
[354935314,1740832242388,-551.39,0.00031886,2]
[354935315,1740832242537,-500.0,0.00031886,2]
[354935316,1740832242554,-500.0,0.00031886,2]
[354935317,1740832242564,-500.0,0.00031886,2]
[354935318,1740832242574,-500.0,0.00031886,2]
[354935319,1740832242583,-500.0,0.00031886,2]
[354935320,1740832242593,-500.0,0.00031886,2]
[354935321,1740832242604,-500.0,0.00031886,2]
[354935322,1740832242616,-500.0,0.00031886,2]
[354935323,1740832242626,-500.0,0.00031886,2]
[354935324,1740832242635,-500.0,0.00031886,2]
[354935325,1740832242645,-500.0,0.00031886,2]
[354935326,1740832242655,-500.0,0.00031886,2]
[354935327,1740832242665,-500.0,0.00031886,2]
[354935328,1740832242674,-763.23,0.00031886,2]
[354935329,1740832242684,-500.0,0.00031886,2]
[354935330,1740832242694,-1938.15,0.00031886,2]
[354935331,1740832242704,-500.0,0.00031886,2]
[354935332,1740832242715,-500.0,0.00031886,2]
[354935333,1740832242725,-500.0,0.00031886,2]
[354935334,1740832242735,-500.0,0.00031886,2]
[354935335,1740832242746,-500.0,0.00031886,2]
[354935336,1740832242756,-500.0,0.00031886,2]
[354935337,1740832242767,-500.0,0.00031886,2]
[354935338,1740832242777,-626.35,0.00031886,2]
[354935339,1740832242787,-452.45438687,0.00031886,2]
[354935340,1740832242797,-500.0,0.00031886,2]
[354935341,1740832242807,-500.0,0.00031886,2]
[354935342,1740832242816,-500.0,0.00031886,2]
[354935343,1740832242826,-500.0,0.00031886,2]
[354935344,1740832242836,-500.0,0.00031886,2]
[354935345,1740832242846,-649.13,0.00031886,2]
[354935346,1740832242856,-500.0,0.00031886,2]
[354935347,1740832242865,-500.0,0.00031886,2]
[354935348,1740832242875,-500.0,0.00031886,2]
[354935349,1740832242885,-500.0,0.00031886,2]
[354935350,1740832242895,-500.0,0.00031886,2]
[354935351,1740832242904,-1065.4,0.00031886,2]
[354935352,1740832242914,-500.0,0.00031886,2]
[354935353,1740832242924,-500.0,0.00031886,2]
[354935354,1740832242933,-500.0,0.00031886,2]
[354935355,1740832242943,-500.0,0.00031886,2]
[354935356,1740832242953,-500.0,0.00031886,2]
[354935357,1740832242962,-500.0,0.00031886,2]
[354935358,1740832242972,-500.0,0.00031886,2]
[354935359,1740832242981,-500.0,0.00031886,2]
[354935360,1740832242991,-500.0,0.00031886,2]
[354935361,1740832243000,-505.41560755,0.00031886,2]
[354935362,1740832243010,-460.996841,0.00031886,2]
[354935363,1740832243020,-500.0,0.00031886,2]
[354935364,1740832243030,-1730.75,0.00031886,2]
[354935365,1740832243039,-500.0,0.00031886,2]
[354935366,1740832243049,-500.0,0.00031886,2]
[354935368,1740832243059,-500.0,0.00031886,2]
[354935369,1740832243069,-500.0,0.00031886,2]
[354935370,1740832243079,-500.0,0.00031886,2]
[354935371,1740832243088,-500.0,0.00031886,2]
[354935372,1740832243098,-500.0,0.00031886,2]
[354935373,1740832243107,-500.0,0.00031886,2]
[354935374,1740832243117,-500.0,0.00031886,2]
[354935375,1740832243126,-500.0,0.00031886,2]
[354935376,1740832243137,-162001.45,0.00031886,2]
[354935377,1740832243147,-500.0,0.00031886,2]
[354935378,1740832243156,-833.71,0.00031886,2]
[354935379,1740832243166,-500.0,0.00031886,2]
[354935380,1740832243175,-500.0,0.00031886,2]
[354935381,1740832243184,-9858.27,0.00031886,2]
[354935382,1740832243194,-500.0,0.00031886,2]
[354935383,1740832243204,-3273.89,0.00031886,2]
[354935385,1740832243214,-500.0,0.00031886,2]
[354935387,1740832243223,-500.0,0.00031886,2]
[354935390,1740832243233,-500.0,0.00031886,2]
[354935394,1740832243243,-500.0,0.00031886,2]
[354935397,1740832243252,-500.0,0.00031886,2]
[354935401,1740832243261,-500.0,0.00031886,2]
[354935404,1740832243271,-1671.64,0.00031886,2]
[354935406,1740832243280,-1140.96,0.00031886,2]
[354935410,1740832243289,-500.0,0.00031886,2]
[354935414,1740832243299,-2266.52,0.00031886,2]
[354935417,1740832243309,-500.0,0.00031886,2]
[354935419,1740832243318,-500.0,0.00031886,2]
[354935421,1740832243327,-500.0,0.00031886,2]
[354935423,1740832243336,-500.0,0.00031886,2]
[354935425,1740832243346,-4366.26,0.00031886,2]
[354935427,1740832243355,-494.63397292,0.00031886,2]
[354935429,1740832243364,-500.0,0.00031886,2]
[354935431,1740832243374,-500.0,0.00031886,2]
[354935434,1740832243383,-500.0,0.00031886,2]
[354935436,1740832243392,-500.0,0.00031886,2]
[354935439,1740832243402,-1430.61,0.00031886,2]
[354935441,1740832243411,-500.0,0.00031886,2]
[354935443,1740832243421,-1466.03,0.00031886,2]
[354935444,1740832243431,-885.77,0.00031886,2]
[354935445,1740832243440,-500.0,0.00031886,2]
[354935446,1740832243449,-500.0,0.00031886,2]
[354935447,1740832243460,-500.0,0.00031886,2]
[354935448,1740832243469,-500.0,0.00031886,2]
[354935449,1740832243479,-695.79,0.00031886,2]
[354935450,1740832243488,-500.0,0.00031886,2]
[354935451,1740832243498,-500.0,0.00031886,2]
[354935452,1740832243507,-500.0,0.00031886,2]
[354935453,1740832243517,-500.0,0.00031886,2]
[354935454,1740832243526,-508.39751474,0.00031886,2]
[354935455,1740832243536,-500.0,0.00031886,2]
[354935456,1740832243545,-1301.78,0.00031886,2]
[354935457,1740832243555,-500.0,0.00031886,2]
[354935458,1740832243564,-500.0,0.00031886,2]
[354935459,1740832243574,-505.30669483,0.00031886,2]
[354935460,1740832243583,-500.0,0.00031886,2]
[354935461,1740832243593,-500.0,0.00031886,2]
[354935462,1740832243604,-500.0,0.00031886,2]
[354935463,1740832243616,-500.0,0.00031886,2]